bitfinex-derivatives/quotes_ETHF0:USTF0_20260119
["timestamp","ask_amount","ask_price","bid_price","bid_amount"]
[1768847209709,1.66569775,3212.8,3211.4,0.63500364]
[1768847210009,1.74,3212.6,3211.4,0.63500364]
[1768847210306,0.93665834,3212.5,3211.5,0.15577]
[1768847210511,1.74,3212.6,3211.5,0.15577]
[1768847210512,0.93665834,3212.4,3211.5,0.15577]
[1768847210703,1.74,3212.6,3211.5,0.15577]
[1768847210903,0.93648695,3212.5,3211.5,0.15577]
[1768847211206,0.93648695,3212.4,3211.5,0.15577]
[1768847211511,1.74,3212.6,3211.5,0.15577]
[1768847211705,0.93669221,3212.5,3211.5,0.15577]
[1768847211906,0.93669221,3212.4,3211.5,0.15577]
[1768847212107,1.74,3212.6,3211.5,0.15577]
[1768847212306,0.93684487,3212.5,3211.5,0.15577]
[1768847212508,0.93684487,3212.4,3211.5,0.15577]
[1768847212706,1.74,3212.6,3211.5,0.15577]
[1768847212910,0.93684236,3212.5,3211.5,0.15577]
[1768847213108,0.93684236,3212.4,3211.5,0.15577]
[1768847213310,0.00396933,3212.8,3211.5,0.15577]
[1768847213613,2.67799441,3212.7,3211.5,0.15577]
[1768847213805,0.93699441,3212.6,3211.5,0.15577]
[1768847214116,0.93699441,3212.5,3211.5,0.15577]
[1768847214312,0.93699441,3212.4,3211.5,0.15577]
[1768847214512,1.741,3212.7,3211.5,0.15577]
[1768847214713,0.93714759,3212.6,3211.5,0.15577]
[1768847214907,0.93714759,3212.5,3211.5,0.15577]
[1768847215108,0.93714759,3212.4,3211.5,0.76877315]
[1768847215308,1.741,3212.7,3211.5,0.76877315]
[1768847215609,0.93733296,3212.6,3211.5,0.76877315]
[1768847215809,0.93733296,3212.5,3211.5,0.76877315]
[1768847216119,0.93733296,3212.4,3211.6,0.61300315]
[1768847216408,0.00396933,3212.8,3211.6,0.61300315]
[1768847216715,0.93750548,3212.7,3211.6,0.61300315]
[1768847216919,0.93750548,3212.6,3211.6,0.61300315]
[1768847217114,0.93750548,3212.5,3211.6,0.61300315]
[1768847217315,0.00396933,3212.8,3211.6,0.61300315]
[1768847217515,0.93766717,3212.7,3211.6,0.61300315]
[1768847217714,0.93766717,3212.6,3211.6,0.61300315]
[1768847217915,0.93766717,3212.5,3211.7,0.61300315]
[1768847218219,0.00396933,3212.8,3211.7,0.61300315]
[1768847218409,0.93751133,3212.7,3211.7,0.76876315]
[1768847218608,0.93751133,3212.6,3211.7,0.76876315]
[1768847218817,0.00396933,3212.8,3211.7,0.76876315]
[1768847219021,0.93750963,3212.7,3211.8,0.61300315]
[1768847219211,0.00396933,3212.8,3211.8,0.76876315]
[1768847219413,0.93744846,3212.7,3211.8,0.76876315]
[1768847219714,0.00396933,3212.8,3211.8,0.76876315]
[1768847219903,0.93746751,3212.7,3211.8,0.76876315]
[1768847220109,0.00396933,3212.8,3211.8,0.76876315]
[1768847220310,0.93742615,3212.7,3211.8,0.76876315]
[1768847220508,0.00396933,3212.8,3211.8,0.76876315]
[1768847220715,0.93743562,3212.7,3211.8,0.76876315]
[1768847220916,0.00396933,3212.8,3211.8,0.76876315]
[1768847221111,0.93743961,3212.7,3211.8,0.76876315]
[1768847221314,0.00396933,3212.8,3211.8,0.76876315]
[1768847221719,1.29356026,3212.3,3211.2,0.15578]
[1768847222025,0.93721746,3212.7,3211.2,0.15578]
[1768847222026,1.29356026,3212.7,3211.2,0.15578]
[1768847222219,1.81680788,3212.8,3211.2,0.15578]
[1768847222220,0.93702514,3212.6,3211.4,0.61300315]
[1768847222520,0.93702514,3212.5,3211.4,0.61300315]
[1768847222720,0.93702514,3212.4,3211.5,0.61300315]
[1768847222923,1.741,3212.7,3211.5,0.61300315]
[1768847223122,0.93705813,3212.6,3211.5,0.61300315]
[1768847223425,0.93705813,3212.5,3211.5,0.61300315]
[1768847223621,0.93705813,3212.4,3211.5,0.61300315]
[1768847223919,1.741,3212.7,3211.5,0.61300315]
[1768847224118,0.93713039,3212.6,3211.5,0.61300315]
[1768847224321,0.93713039,3212.5,3211.6,0.61300315]
[1768847224517,0.00396933,3212.8,3211.6,0.61300315]
[1768847224720,0.93713236,3212.7,3211.6,0.61300315]
[1768847224914,0.93713236,3212.6,3211.6,0.61300315]
[1768847225114,0.00396933,3212.8,3211.6,0.61300315]
[1768847225115,0.93713236,3212.5,3211.6,0.61300315]
[1768847225325,0.93704039,3212.4,3211.6,0.61300315]
[1768847225514,0.00396933,3212.8,3211.6,0.61300315]
[1768847225715,0.93706115,3212.7,3211.6,0.61300315]
[1768847225915,0.93706115,3212.6,3211.6,0.61300315]
[1768847226115,0.93706115,3212.5,3211.6,0.61300315]
[1768847226322,0.93706115,3212.4,3211.6,0.61300315]
[1768847226520,0.00396933,3212.8,3211.6,0.61300315]
[1768847226825,0.93718868,3212.7,3211.6,0.61300315]
[1768847227015,0.93718868,3212.6,3211.6,0.61300315]
[1768847227217,0.93718868,3212.5,3211.6,0.61300315]
[1768847227419,0.93718868,3212.4,3211.5,0.15577]
[1768847227621,0.00396933,3212.8,3211.5,0.15577]
[1768847227821,0.93726417,3212.7,3211.5,0.15577]
[1768847228023,0.93726417,3212.6,3211.5,0.15577]
[1768847228224,0.93726417,3212.5,3211.5,0.15577]
[1768847228422,0.93726417,3212.4,3211.5,0.15577]
[1768847228612,0.00396933,3212.8,3211.5,0.15577]
[1768847228817,0.93735804,3212.7,3211.5,0.15577]
[1768847229020,0.93735804,3212.6,3211.5,0.15577]
[1768847229312,0.93735804,3212.5,3211.5,0.15577]
[1768847229517,0.93735804,3212.4,3211.5,0.15577]
[1768847229717,0.00396933,3212.8,3211.5,0.15577]
[1768847229912,0.93747668,3212.7,3211.5,0.15577]
[1768847230117,0.93747668,3212.6,3211.5,0.15577]
[1768847230317,0.00396933,3212.8,3211.5,0.15577]
[1768847230318,0.93747668,3212.5,3211.5,0.15577]
[1768847230519,0.93747668,3212.4,3211.5,0.15577]
[1768847230725,0.00396933,3212.8,3211.5,0.76877315]
[1768847230916,0.93760416,3212.7,3211.5,0.76877315]
[1768847231129,0.93760416,3212.6,3211.5,0.76877315]
[1768847231334,0.93760416,3212.5,3211.5,0.76877315]
[1768847231534,0.00396933,3212.8,3211.5,0.76877315]
[1768847231733,0.93776355,3212.7,3211.5,0.76877315]
[1768847231942,0.93776355,3212.6,3211.5,0.76877315]
[1768847232138,0.93776355,3212.5,3211.5,0.76877315]
[1768847232340,0.00396933,3212.8,3211.5,0.76877315]
[1768847232534,0.93791502,3212.7,3211.6,0.76877315]
[1768847232734,0.93791502,3212.6,3211.6,0.76877315]
[1768847232940,0.93791502,3212.5,3211.6,0.76877315]
[1768847233142,0.00396933,3212.8,3211.6,0.76877315]
[1768847233338,0.93807199,3212.7,3211.6,0.76877315]
[1768847233539,0.93807199,3212.6,3211.6,0.76877315]
[1768847233740,0.93807199,3212.5,3211.6,0.76877315]
[1768847233941,0.00396933,3212.8,3211.6,0.76877315]
[1768847234142,0.93808242,3212.7,3211.6,0.76877315]
[1768847234343,0.93808242,3212.6,3211.6,0.76877315]
[1768847234542,0.93808242,3212.5,3211.6,0.76877315]
[1768847234745,0.00396933,3212.8,3211.6,0.76877315]
[1768847234949,0.93825382,3212.7,3211.6,0.76877315]
[1768847235146,0.93825382,3212.6,3211.6,0.76877315]
[1768847235336,0.93825382,3212.5,3211.6,0.76877315]
[1768847235539,0.00396933,3212.8,3211.6,0.76877315]
[1768847235744,0.93842056,3212.7,3211.6,0.76877315]
[1768847235946,0.93842056,3212.6,3211.6,0.76877315]
[1768847236145,0.93842056,3212.5,3211.6,0.76877315]
[1768847236344,0.00396933,3212.8,3211.7,0.15576]
[1768847236648,0.9386429,3212.7,3211.7,0.76876315]
[1768847236848,0.9386429,3212.6,3211.7,0.76876315]
[1768847237046,0.9386429,3212.5,3211.7,0.76876315]
[1768847237247,0.9386429,3212.4,3211.7,0.76876315]
[1768847237449,0.00396933,3212.8,3211.7,0.76876315]
[1768847237757,0.93875329,3212.7,3211.7,0.76876315]
[1768847237947,0.93875329,3212.6,3211.7,0.76876315]
[1768847238149,0.93875329,3212.5,3211.7,0.15576]
[1768847238448,0.93875329,3212.5,3211.3,0.61300315]
[1768847238449,0.93875329,3212.4,3211.1,0.15579]
[1768847240052,0.93875329,3212.4,3211.1,0.76879315]
[1768847240257,0.93875329,3212.3,3211.2,0.76878315]
[1768847240452,0.93875329,3212.2,3211.3,0.61300315]
[1768847240656,0.93875329,3212.1,3211.3,0.61300315]
[1768847240955,3.40272842,3212.6,3211.3,0.61300315]
[1768847241155,0.93761084,3212.5,3211.3,0.61300315]
[1768847241354,0.93761084,3212.4,3211.3,0.61300315]
[1768847241561,0.93761084,3212.3,3211.3,0.61300315]
[1768847241856,0.93761084,3212.2,3211.3,0.61300315]
[1768847242055,0.93761084,3212.1,3211.3,0.61300315]
[1768847242245,3.40272842,3212.7,3211.3,0.61300315]
[1768847242446,1.26439387,3212.6,3211.3,0.61300315]
[1768847242658,1.26439387,3212.6,3211.2,0.15578]
[1768847242659,0.93755865,3212.5,3211.4,0.61300315]
[1768847242850,0.93755865,3212.4,3211.6,0.15577]
[1768847243050,2.6032564,3212.8,3211.6,0.15577]
[1768847243358,0.93755865,3212.7,3211.6,0.15577]
[1768847243552,0.93755865,3212.6,3211.6,0.15577]
[1768847243753,0.93755865,3212.5,3211.6,0.15577]
[1768847243963,0.93755865,3212.4,3211.6,0.15577]
[1768847244260,0.93755865,3212.3,3211.6,0.15577]
[1768847244458,1.66569775,3212.8,3211.6,0.15577]
[1768847244660,2.60335948,3212.8,3211.6,0.15577]
[1768847246448,0.93766173,3212.7,3211.6,0.15577]
[1768847247358,0.93766173,3212.7,3211.6,0.78342595]
[1768847255755,0.93766173,3212.7,3211.7,0.62765595]
[1768847255951,0.93766173,3212.7,3211.9,0.62765595]
[1768847259663,0.93766173,3212.7,3211.9,0.78340595]
[1768847262361,0.00396933,3212.8,3212.1,0.15574]
[1768847265064,0.00396933,3212.8,3211.3,0.63063264]
[1768847265263,0.00396933,3212.8,3210.8,3.9192337]
[1768847265264,0.65134413,3212.8,3211.5,0.15577]
[1768847266862,1.29370196,3212.5,3211.5,0.15577]
[1768847267570,1.94107676,3212.5,3211.5,0.15577]
[1768847268471,1.29370196,3212.3,3211.5,0.15577]
[1768847269869,0.6473748,3212.5,3211.5,0.15577]
[1768847270067,1.29370196,3212.4,3211.5,0.15577]
[1768847274563,0.93284082,3212.3,3211.5,0.15577]
[1768847274764,1.29370196,3212.4,3211.5,0.15577]
[1768847274965,0.93283977,3212.3,3211.5,0.15577]
[1768847275163,1.29370196,3212.4,3211.5,0.15577]
[1768847275369,0.9328428,3212.3,3211.5,0.15577]
[1768847275573,1.29370196,3212.4,3211.5,0.15577]
[1768847275776,0.93283243,3212.3,3211.5,0.15577]
[1768847275960,1.29370196,3212.4,3211.5,0.15577]
[1768847276164,0.9328318,3212.3,3211.5,0.15577]
[1768847276365,1.29370196,3212.4,3211.5,0.15577]
[1768847276562,0.93281409,3212.3,3211.5,0.15577]
[1768847276861,1.29370196,3212.4,3211.5,0.15577]
[1768847277173,0.93281051,3212.3,3211.5,0.15577]
[1768847277375,1.29370196,3212.4,3211.5,0.15577]
[1768847277673,0.93278919,3212.3,3211.5,0.15577]
[1768847277867,1.741,3212.7,3211.5,1.44947196]
[1768847278172,0.93278773,3212.6,3211.5,1.44947196]
[1768847278368,0.93278773,3212.5,3211.5,1.44947196]
[1768847278677,0.93278773,3212.4,3211.5,1.44947196]
[1768847278867,1.741,3212.7,3211.5,1.44947196]
[1768847279066,0.93276064,3212.6,3211.5,1.44947196]
[1768847279266,0.93276064,3212.5,3211.5,1.44947196]
[1768847279468,0.93276064,3212.4,3211.5,1.44947196]
[1768847279779,1.29767129,3212.8,3211.5,1.44947196]
[1768847280076,2.67378913,3212.7,3211.5,1.44947196]
[1768847280278,0.93278913,3212.6,3211.5,1.44947196]
[1768847280478,0.93278913,3212.5,3211.5,1.44947196]
[1768847280776,1.74496933,3212.8,3211.5,1.44947196]
[1768847281076,0.93276724,3212.7,3211.5,1.44947196]
[1768847281275,0.93276724,3212.6,3211.5,1.44947196]
[1768847281475,0.93276724,3212.5,3211.5,1.44947196]
[1768847281679,3.03867129,3212.8,3211.5,1.44947196]
[1768847281868,0.93277113,3212.7,3211.5,1.44947196]
[1768847282178,0.93277113,3212.6,3211.5,2.02951252]
[1768847282374,0.93277113,3212.5,3211.5,2.02951252]
[1768847282670,0.00396933,3212.8,3211.7,1.29370196]
[1768847282979,0.93277546,3212.7,3211.7,1.29370196]
[1768847283169,0.93277546,3212.6,3211.7,1.29370196]
[1768847283364,0.93277546,3212.5,3211.7,1.29370196]
[1768847283571,0.00396933,3212.8,3211.7,1.44946196]
[1768847283878,0.93278388,3212.7,3211.7,1.44946196]
[1768847284074,0.93278388,3212.6,3211.7,1.44946196]
[1768847284276,0.00396933,3212.8,3211.9,1.29370196]
[1768847285580,0.00396933,3212.8,3211.9,1.44945196]
[1768847286470,0.00396933,3212.8,3211.9,2.02949252]
[1768847290171,0.00396933,3212.8,3211.9,0.15575]
[1768847290972,1.29370196,3212.7,3211.9,0.15575]
[1768847291877,0.00396933,3212.8,3211.9,0.15575]
[1768847296383,0.00396933,3212.8,3211.9,2.02949252]
[1768847300187,0.00396933,3212.8,3211.9,0.73579056]
[1768847312298,0.00396933,3212.8,3212.0,0.48239688]
[1768847313191,0.93531106,3212.7,3212.0,0.48239688]
[1768847313395,0.00396933,3212.8,3212.0,0.48239688]
[1768847314189,0.93559534,3212.7,3212.0,0.48239688]
[1768847314496,0.00396933,3212.8,3212.0,0.48239688]
[1768847314697,0.93559773,3212.7,3212.0,0.48239688]
[1768847314897,0.00396933,3212.8,3212.0,0.48239688]
[1768847315098,0.93559773,3212.7,3212.0,0.48239688]
[1768847315300,0.00396933,3212.8,3212.0,0.48239688]
[1768847315597,0.93560264,3212.7,3212.0,0.48239688]
[1768847315799,0.00396933,3212.8,3212.0,0.48239688]
[1768847315998,0.93560025,3212.7,3212.0,0.48239688]
[1768847316193,0.00396933,3212.8,3212.0,0.48239688]
[1768847316393,0.9356009,3212.7,3212.0,0.48239688]
[1768847316597,0.00396933,3212.8,3212.0,0.48239688]
[1768847316795,0.93560088,3212.7,3212.0,0.48239688]
[1768847316996,0.00396933,3212.8,3212.0,0.48239688]
[1768847317200,0.93559995,3212.7,3212.0,0.48239688]
[1768847317390,0.00396933,3212.8,3212.0,0.48239688]
[1768847317596,0.93560576,3212.7,3212.0,0.48239688]
[1768847317792,0.00396933,3212.8,3212.0,0.48239688]
[1768847318097,0.93560684,3212.7,3212.0,0.48239688]
[1768847318303,0.00396933,3212.8,3212.0,0.48239688]
[1768847318501,0.93561122,3212.7,3212.0,0.48239688]
[1768847318696,0.00396933,3212.8,3212.0,0.48239688]
[1768847319002,0.93561101,3212.7,3212.0,0.48239688]
[1768847319203,0.00396933,3212.8,3212.0,0.48239688]
[1768847319404,0.93561639,3212.7,3212.0,0.48239688]
[1768847319604,0.00396933,3212.8,3212.0,0.48239688]
[1768847319908,0.93561642,3212.7,3212.0,0.48239688]
[1768847320106,0.00396933,3212.8,3212.0,0.48239688]
[1768847320307,0.93562145,3212.7,3212.0,0.48239688]
[1768847320508,0.00396933,3212.8,3212.0,0.48239688]
[1768847320807,0.93562021,3212.7,3212.0,0.48239688]
[1768847320996,0.00396933,3212.8,3212.0,0.48239688]
[1768847321293,0.93561942,3212.7,3212.0,0.48239688]
[1768847321490,0.00396933,3212.8,3212.0,0.48239688]
[1768847321694,0.93563579,3212.7,3212.0,0.48239688]
[1768847321895,0.00396933,3212.8,3212.0,0.48239688]
[1768847322104,0.93563535,3212.7,3212.0,0.48239688]
[1768847322403,0.00396933,3212.8,3212.0,0.48239688]
[1768847322702,0.9356443,3212.7,3212.0,0.48239688]
[1768847322890,0.00396933,3212.8,3212.0,0.48239688]
[1768847323095,0.93565213,3212.7,3212.0,0.48239688]
[1768847323296,0.00396933,3212.8,3212.0,0.48239688]
[1768847323496,0.93565282,3212.7,3212.0,0.48239688]
[1768847323700,0.00396933,3212.8,3212.0,0.48239688]
[1768847323906,0.93565238,3212.7,3212.0,0.48239688]
[1768847324092,0.00396933,3212.8,3212.0,0.48239688]
[1768847324295,0.93566084,3212.7,3212.0,0.48239688]
[1768847324497,0.00396933,3212.8,3212.0,0.48239688]
[1768847324697,0.9356607,3212.7,3212.0,0.48239688]
[1768847324913,0.00396933,3212.8,3212.0,0.48239688]
[1768847325105,0.93566056,3212.7,3212.0,0.48239688]
[1768847325307,0.00396933,3212.8,3212.0,0.48239688]
[1768847325603,0.93567959,3212.7,3212.0,0.48239688]
[1768847325804,0.00396933,3212.8,3212.0,0.48239688]
[1768847326007,0.93568059,3212.7,3212.0,0.48239688]
[1768847326306,0.00396933,3212.8,3212.0,0.48239688]
[1768847326502,0.93568742,3212.7,3212.0,0.48239688]
[1768847326704,0.00396933,3212.8,3212.0,0.48239688]
[1768847326902,0.93568818,3212.7,3212.0,0.48239688]
[1768847327102,0.00396933,3212.8,3212.0,0.48239688]
[1768847327302,0.93569014,3212.7,3212.0,0.48239688]
[1768847327602,0.00396933,3212.8,3212.0,0.48239688]
[1768847327804,0.93569144,3212.7,3212.0,0.48239688]
[1768847328002,0.00396933,3212.8,3212.0,0.48239688]
[1768847328209,0.93569071,3212.7,3212.0,0.48239688]
[1768847328410,0.00396933,3212.8,3212.0,0.48239688]
[1768847328711,0.93569169,3212.7,3212.0,0.48239688]
[1768847329011,0.00396933,3212.8,3212.0,0.48239688]
[1768847329207,0.93568833,3212.7,3212.0,0.48239688]
[1768847329506,0.00396933,3212.8,3212.0,0.48239688]
[1768847329702,0.93568864,3212.7,3212.0,0.48239688]
[1768847329904,0.00396933,3212.8,3212.0,0.48239688]
[1768847330104,0.93568871,3212.7,3212.0,0.48239688]
[1768847330308,0.00396933,3212.8,3212.0,0.48239688]
[1768847330508,0.93670185,3212.7,3212.0,0.48239688]
[1768847330709,0.00396933,3212.8,3212.0,0.48239688]
[1768847330907,1.68107116,3212.4,3211.0,3.9192337]
[1768847331105,1.65185192,3212.3,3210.8,0.54665232]
[1768847331404,0.93670366,3212.2,3210.8,0.54665232]
[1768847331601,0.93670366,3212.1,3210.8,0.54665232]
[1768847331797,0.93670366,3212.0,3210.9,0.39085232]
[1768847332002,0.93670366,3211.9,3210.9,0.39085232]
[1768847332205,3.40272842,3212.5,3210.9,0.39085232]
[1768847332509,0.93444365,3212.4,3210.9,0.39085232]
[1768847332708,0.93444365,3212.3,3210.9,0.39085232]
[1768847333014,0.93444365,3212.2,3210.9,0.39085232]
[1768847333211,0.93444365,3212.1,3210.9,0.39085232]
[1768847333401,0.93444365,3212.0,3210.9,0.39085232]
[1768847333604,3.40272842,3212.5,3210.9,0.39085232]
[1768847333802,0.93401169,3212.4,3210.9,0.39085232]
[1768847334109,0.93401169,3212.3,3210.9,0.39085232]
[1768847334309,0.93401169,3212.2,3210.9,0.39085232]
[1768847334505,0.93401169,3212.1,3210.9,0.39085232]
[1768847334706,0.93401169,3212.0,3210.9,0.39085232]
[1768847334909,2.11148481,3212.5,3210.9,0.39085232]
[1768847335107,0.9336722,3212.4,3210.9,0.39085232]
[1768847335316,0.9336722,3212.3,3210.9,0.39085232]
[1768847335608,0.9336722,3212.2,3210.9,0.39085232]
[1768847335813,0.9336722,3212.1,3210.9,0.39085232]
[1768847336004,2.11148481,3212.5,3210.9,0.39085232]
[1768847336307,0.93339125,3212.4,3210.9,0.39085232]
[1768847336507,0.93339125,3212.3,3210.9,0.39085232]
[1768847336712,0.93339125,3212.2,3210.9,0.39085232]
[1768847336911,0.93339125,3212.1,3210.9,0.39085232]
[1768847337108,2.11148481,3212.5,3210.9,0.39085232]
[1768847337310,0.932963,3212.4,3210.9,0.39085232]
[1768847337509,0.932963,3212.3,3210.9,0.39085232]
[1768847337812,0.932963,3212.2,3210.9,0.39085232]
[1768847338008,0.932963,3212.1,3210.9,0.39085232]
[1768847338213,0.37048481,3212.3,3210.9,0.39085232]
[1768847338415,0.93279887,3212.2,3210.9,0.39085232]
[1768847338712,0.93279887,3212.1,3210.9,0.39085232]
[1768847338909,0.37048481,3212.3,3210.9,0.39085232]
[1768847339115,0.93279894,3212.2,3210.9,0.39085232]
[1768847339320,1.30328375,3212.1,3210.8,0.1558]
[1768847339513,0.93279894,3212.0,3210.8,0.1558]
[1768847339712,0.37048481,3212.1,3210.8,0.1558]
[1768847339915,0.93260953,3212.0,3210.8,0.1558]
[1768847340214,0.37048481,3212.1,3210.8,0.1558]
[1768847340415,0.93257304,3212.0,3210.8,0.1558]
[1768847340615,0.37048481,3212.1,3210.8,0.1558]
[1768847340808,0.93257329,3212.0,3210.8,0.1558]
[1768847341007,0.37048481,3212.1,3210.8,0.1558]
[1768847341213,0.93257336,3212.0,3210.8,0.1558]
[1768847341515,0.37048481,3212.1,3210.8,0.1558]
[1768847341709,0.93240132,3212.0,3210.8,0.1558]
[1768847342009,0.37048481,3212.1,3210.8,0.1558]
[1768847342210,0.93240198,3212.0,3210.8,0.1558]
[1768847342410,0.37048481,3212.1,3210.8,0.1558]
[1768847342616,0.93226795,3212.0,3210.8,0.1558]
[1768847342812,0.37048481,3212.1,3210.8,0.1558]
[1768847343007,0.93226813,3212.0,3210.8,0.1558]
[1768847343207,0.37048481,3212.1,3210.8,0.1558]
[1768847344718,0.93209661,3212.0,3210.8,0.1558]
[1768847344916,0.37048481,3212.1,3210.8,0.1558]
[1768847350328,0.93194042,3212.0,3210.8,0.1558]
[1768847350530,0.37048481,3212.1,3210.8,0.1558]
[1768847350827,0.93193837,3212.0,3210.8,0.1558]
[1768847351120,0.37048481,3212.1,3210.8,0.1558]
[1768847351314,0.93200981,3212.0,3210.8,0.1558]
[1768847351520,0.37048481,3212.1,3210.8,0.1558]
[1768847351712,0.93197712,3212.0,3210.8,0.1558]
[1768847351911,0.37048481,3212.1,3210.8,0.1558]
[1768847352112,0.93197689,3212.0,3210.8,0.1558]
[1768847352312,0.37048481,3212.1,3210.8,0.1558]
[1768847352512,0.93210638,3212.0,3210.8,0.1558]
[1768847352721,0.37048481,3212.1,3210.8,0.1558]
[1768847352919,0.93210804,3212.0,3210.8,0.1558]
[1768847353124,0.37048481,3212.1,3210.8,0.1558]
[1768847353323,0.93222304,3212.0,3210.8,0.1558]
[1768847353511,0.37048481,3212.1,3210.8,0.1558]
[1768847353712,0.93226001,3212.0,3210.8,0.1558]
[1768847353911,0.37048481,3212.1,3210.8,0.1558]
[1768847354108,0.93226147,3212.0,3210.8,0.1558]
[1768847354312,0.37048481,3212.1,3210.8,0.1558]
[1768847354522,0.9324428,3212.0,3210.8,0.1558]
[1768847354712,0.37048481,3212.1,3210.8,0.1558]
[1768847354922,0.93245133,3212.0,3210.8,0.1558]
[1768847355121,0.37048481,3212.1,3210.8,0.1558]
[1768847355321,0.93263252,3212.0,3210.8,0.1558]
[1768847355524,0.37048481,3212.1,3210.8,0.1558]
[1768847355724,0.93267083,3212.0,3210.8,0.1558]
[1768847356019,0.37048481,3212.1,3210.8,0.1558]
[1768847356219,0.93263772,3212.0,3210.8,0.1558]
[1768847356422,0.93263772,3211.9,3210.8,0.1558]
[1768847356725,0.37048481,3212.1,3210.8,0.1558]
[1768847356924,0.93291577,3212.0,3210.8,0.52633543]
[1768847357110,0.93291577,3211.9,3210.8,0.52633543]
[1768847357316,0.37048481,3212.3,3210.8,0.52633543]
[1768847357519,0.93326561,3212.2,3210.8,0.52633543]
[1768847357719,0.93326561,3212.1,3210.8,0.52633543]
[1768847360325,0.93326561,3212.1,3210.9,0.52633543]
[1768847361722,0.93326561,3212.0,3210.9,0.52633543]
[1768847361925,0.93326561,3211.9,3210.9,0.52633543]
[1768847362117,0.93326561,3211.8,3210.9,0.52633543]
[1768847362318,1.66172842,3212.3,3210.9,0.52633543]
[1768847362513,2.60739105,3212.3,3210.9,0.52633543]
[1768847364726,2.60739105,3212.3,3211.0,0.28854621]
[1768847366426,1.66172842,3212.3,3211.0,0.28854621]
[1768847366624,2.60740847,3212.3,3211.0,0.28854621]
[1768847371323,4.34840847,3212.3,3211.0,0.28854621]
[1768847371525,0.94568005,3212.2,3211.0,0.28854621]
[1768847371725,0.94568005,3212.1,3211.0,0.28854621]
[1768847371926,0.94568005,3212.0,3211.0,0.28854621]
[1768847372126,0.94568005,3211.9,3211.0,0.28854621]
[1768847372322,0.94568005,3211.8,3211.0,0.28854621]
[1768847372523,3.40272842,3212.3,3211.0,0.28854621]
[1768847372722,0.94554269,3212.2,3211.0,0.28854621]
[1768847372932,0.94554269,3212.1,3211.0,0.28854621]
[1768847373130,0.94554269,3212.0,3211.0,0.28854621]
[1768847373325,0.94554269,3211.9,3211.0,0.28854621]
[1768847373526,0.94554269,3211.8,3211.0,0.28854621]
[1768847373726,3.40272842,3212.3,3211.0,0.28854621]
[1768847373922,0.94553174,3212.2,3211.0,0.28854621]
[1768847374126,0.94553174,3212.1,3211.0,0.28854621]
[1768847374319,0.94553174,3212.0,3211.0,0.28854621]
[1768847374520,0.94553174,3211.9,3211.0,0.28854621]
[1768847374738,0.94553174,3211.8,3211.0,0.28854621]
[1768847375035,3.40272842,3212.3,3211.0,0.44433621]
[1768847375235,0.94552376,3212.2,3211.0,0.44433621]
[1768847375531,0.94552376,3212.1,3211.0,0.44433621]
[1768847375731,0.94552376,3212.0,3211.0,0.44433621]
[1768847376034,0.94552376,3211.9,3211.0,0.44433621]
[1768847376234,0.94552376,3211.8,3211.0,0.44433621]
[1768847376434,3.40272842,3212.3,3211.0,0.44433621]
[1768847376638,0.94552215,3212.2,3211.0,0.44433621]
[1768847376828,0.94552215,3212.1,3211.0,0.44433621]
[1768847377029,0.94552215,3212.0,3211.0,0.44433621]
[1768847377229,0.94552215,3211.9,3211.0,0.44433621]
[1768847377433,0.94552215,3211.8,3211.0,0.44433621]
[1768847377630,3.40272842,3212.3,3211.0,0.44433621]
[1768847377934,0.94552396,3212.2,3211.0,0.44433621]
[1768847380436,0.945079,3212.2,3211.0,0.44433621]
[1768847380637,0.945079,3212.1,3211.0,0.44433621]
[1768847380841,0.945079,3212.0,3211.0,0.44433621]
[1768847381044,0.945079,3211.9,3211.1,0.15579]
[1768847381234,0.945079,3211.8,3211.1,0.15579]
[1768847381544,1.66172842,3212.3,3211.1,0.15579]
[1768847381840,3.40372842,3212.3,3211.1,0.15579]
[1768847382040,0.945096,3212.2,3211.1,0.15579]
[1768847382241,0.945096,3212.1,3211.1,0.15579]
[1768847382440,0.945096,3212.0,3211.1,0.15579]
[1768847382642,0.945096,3211.9,3211.1,0.15579]
[1768847382945,0.945096,3211.8,3211.1,0.15579]
[1768847383142,3.40372842,3212.3,3211.1,0.15579]
[1768847383343,0.94511588,3212.2,3211.1,0.15579]
[1768847383643,0.94511588,3212.1,3211.1,0.15579]
[1768847383846,0.94511588,3212.0,3211.1,0.15579]
[1768847384047,0.94511588,3211.9,3211.1,0.15579]
[1768847384246,0.94511588,3211.8,3211.1,0.15579]
[1768847384441,3.40372842,3212.3,3211.1,0.15579]
[1768847384740,0.94516786,3212.2,3211.1,0.15579]
[1768847384945,0.94516786,3212.1,3211.1,0.15579]
[1768847385242,0.94516786,3212.0,3211.1,0.15579]
[1768847385542,0.94516786,3211.9,3211.1,0.15579]
[1768847385846,0.94516786,3211.8,3211.1,0.15579]
[1768847386047,3.40372842,3212.3,3211.1,0.15579]
[1768847386346,0.94521558,3212.2,3211.1,0.15579]
[1768847386647,0.94521558,3212.1,3211.1,0.15579]
[1768847386944,0.94521558,3212.0,3211.1,0.15579]
[1768847387132,0.94521558,3211.9,3211.1,0.15579]
[1768847387336,0.94521558,3211.8,3211.1,0.15579]
[1768847387637,3.40372842,3212.3,3211.1,0.15579]
[1768847387837,0.94536374,3212.2,3211.1,0.15579]
[1768847388053,0.94536374,3212.1,3211.1,0.15579]
[1768847388246,0.94536374,3212.0,3211.1,0.15579]
[1768847388441,0.94536374,3211.9,3211.1,0.15579]
[1768847388748,0.94536374,3211.8,3211.1,0.15579]
[1768847388955,0.94536374,3211.7,3211.1,0.15579]
[1768847389144,3.66103363,3212.3,3211.1,0.15579]
[1768847389342,0.94572447,3212.2,3211.1,0.15579]
[1768847389542,0.94572447,3212.1,3211.1,0.15579]
[1768847389750,0.94572447,3212.0,3211.1,0.15579]
[1768847389940,0.94572447,3211.9,3211.1,0.15579]
[1768847390140,0.94572447,3211.8,3211.1,0.15579]
[1768847390343,0.94572447,3211.7,3211.1,0.15579]
[1768847390544,3.66103363,3212.3,3211.1,0.15579]
[1768847390851,0.94227289,3212.2,3211.1,0.15579]
[1768847391050,0.94227787,3212.1,3211.1,0.15579]
[1768847391252,0.94227787,3212.0,3211.1,0.15579]
[1768847391451,0.94227787,3211.9,3211.1,0.15579]
[1768847391751,0.94227787,3211.8,3211.1,0.15579]
[1768847391953,0.94227787,3211.7,3211.1,0.15579]
[1768847392141,4.95484441,3212.3,3211.1,0.15579]
[1768847392338,0.94227719,3212.2,3211.1,0.15579]
[1768847392554,0.94227719,3212.1,3211.1,0.15579]
[1768847392753,0.94227719,3212.0,3211.1,0.15579]
[1768847393054,0.94227719,3211.9,3211.1,0.15579]
[1768847393254,0.94227719,3211.8,3211.1,0.15579]
[1768847393457,0.94227719,3211.7,3211.1,0.15579]
[1768847393756,4.95484441,3212.3,3211.1,0.15579]